[Event "CCT Final-KO 2024"]
[Site "Oslo"]
[Date "2024.12.20"]
[Round "1.4"]
[White "Nepomniachtchi, Ian"]
[Black "Firouzja, Alireza"]
[Result "1-0"]
[ECO "B92"]
[WhiteElo "2758"]
[BlackElo "2756"]
[Annotator "TA"]
[PlyCount "93"]
[EventDate "2024.12.11"]
[EventType "k.o."]
[EventCountry "NOR"]
[SourceTitle "playchess.com"]
[Source "ChessBase"]
[SourceQuality "1"]
[TimeControl "600+2"]

{[%evp 21,93,48,39,45,65,56,92,73,84,84,73,86,117,116,179,169,181,185,177,100,93,110,150,107,167,114,124,47,50,-84,-55,-378,-356,-370,-350,-344,-333,-336,-20,-13,16,7,9,9,10,18,16,4,19,10,25,25,38,47,151,150,187,181,183,179,187,177,215,216,238,279,427,435,536,535,535,535,918,918]} 1. e4 {[%emt 0:00:01]} c5 {[%emt 0:00:00]} 2. Nf3 {[%emt 0:00:02]} d6 {[%emt 0:00:01]} 3. d4 {[%emt 0:00:01]} cxd4 {[%emt 0:00:01]} 4. Nxd4 {[%emt 0:00:01]} Nf6 {[%emt 0:00:01]} 5. Nc3 {[%emt 0:00:01]} a6 {[%emt 0:00:01]} 6. Be2 {[%emt 0:00:01]} e5 {[%emt 0:00:07]} 7. Nb3 {[%emt 0:00:01]} Be7 {[%emt 0:00:02]} 8. O-O {[%emt 0:00:02]} O-O {[%emt 0:00:01]} 9. Qd3 {[%emt 0:00:01]} Be6 {[%emt 0:01:05]} 10. Rd1 {[%emt 0:00:02] 10.Bd2 is a critical line. B92: Sicilian Najdorf: 6 Be2.} a5 {[%emt 0:00:29]} 11. Be3 {[%emt 0:00:29]} Nc6 {[%emt 0:00:17]} 12. a3 {[%emt 0:00:16]} Nd7 $146 {[%emt 0:02:13]} ({Predecessor:} 12... Ng4 13. Bxg4 Bxg4 14. f3 Be6 15. Qb5 Qc8 16. Qd3 f5 17. Nd2 Qe8 18. exf5 Bxf5 {1-0 Cook,P (1805)-Weggen,R (1839) AUS/NZ-NED email 2013 [42]}) 13. Nd5 {[%emt 0:00:15]} a4 {[%emt 0:00:11]} 14. Nd2 {[%emt 0:00:11]} Bg5 {[%emt 0:01:25]} 15. Bxg5 $1 {[%emt 0:00:28]} Qxg5 {[%emt 0:00:01]} 16. Nc7 {[%emt 0:00:04]} Nc5 {[%emt 0:01:44]} 17. Qxd6 {[%emt 0:00:03]} Rad8 {[%emt 0:00:26]} (17... Rac8 $16 {was necessary.}) 18. Qxc5 $18 {[%emt 0:00:51]} Rxd2 {[%emt 0:00:01]} 19. Rxd2 {[%emt 0:00:11]} Qxd2 {[%emt 0:00:01]} 20. Bf1 {[%emt 0:00:07]} ({White should try} 20. Nxe6 $18 fxe6 21. Bd3) 20... Nd4 $16 {[%emt 0:00:26] [#]} 21. Bd3 $1 {[%emt 0:00:53]} (21. Qxe5 $6 Nxc2 22. Rb1 (22. Nxe6 $2 fxe6 23. Qxe6+ Kh8 $19) 22... Ba2 $11) 21... Qg5 {[%emt 0:01:01]} 22. Kh1 {[%emt 0:00:15]} h5 {[%emt 0:00:07]} (22... Qf6 $16) 23. Rf1 {[%emt 0:00:09]} (23. Nd5 $18) 23... Qf4 $16 {[%emt 0:00:15]} 24. f3 {[%emt 0:00:38]} (24. Nxe6 $16 fxe6 25. Qa7) 24... h4 $1 $14 {[%emt 0:00:04]} 25. c3 {[%emt 0:00:01]} (25. Qc3 $14 {stays ahead.}) 25... h3 {[%emt 0:00:19]} 26. cxd4 $4 {[%emt 0:00:08][%mdl 8192]} (26. Nxe6 $1 $15 hxg2+ (26... Nxe6 27. Qf2 $17) 27. Kxg2 Nxe6 (27... fxe6 28. cxd4 Qd2+ 29. Rf2 $16) 28. Qf2) 26... Qd2 $19 {[%emt 0:00:01]} 27. gxh3 {[%emt 0:01:16]} Qxd3 {[%emt 0:00:09]} 28. Rf2 {[%emt 0:00:37]} Bxh3 {[%emt 0:00:05]} (28... exd4 29. Kg2 $11) 29. Qc2 {[%emt 0:00:03]} Qxd4 $2 {[%emt 0:00:10]} (29... Qe3 $19 {( -> ...Qe1+)} 30. Qd2 Qxd2 (30... exd4 31. Nd5 $16) (30... Qxd4 31. Qxd4 exd4 32. Nd5 $14) 31. Rxd2 Rc8 32. dxe5 Rxc7) 30. Nd5 $11 {[%emt 0:00:01]} b6 {[%emt 0:00:12]} 31. Rd2 {[%emt 0:00:04]} Qc5 {[%emt 0:00:00]} 32. Qxc5 {[%emt 0:00:07]} (32. Qxa4 {keeps more tension.} Rc8 33. Qd1 b5 34. Qg1) 32... bxc5 {[%emt 0:00:01]} 33. Kg1 {[%emt 0:00:02]} Be6 {[%emt 0:00:04]} 34. Nc3 {[%emt 0:00:15]} Ra8 {[%emt 0:00:04]} 35. Kf2 {[%emt 0:00:06]} g6 {[%emt 0:00:01]} 36. Rd6 {[%emt 0:00:05]} Kg7 {[%emt 0:00:02]} 37. Rc6 {[%emt 0:00:03]} Rb8 {[%emt 0:00:03]} (37... Ra5 $14) 38. Nxa4 $16 {[%emt 0:00:02]} Bd7 {[%emt 0:00:01]} 39. Rb6 $1 {[%emt 0:00:00]} Rc8 {[%emt 0:00:03]} 40. Nc3 {[%emt 0:00:02]} Rh8 {[%emt 0:00:01]} 41. Kg3 {[%emt 0:00:04]} Be6 {[%emt 0:00:02]} 42. a4 {[%emt 0:00:04]} Rd8 {[%emt 0:00:03]} 43. a5 {[%emt 0:00:06]} Ra8 {[%emt 0:00:01]} (43... Bc4 $142 44. Nb5 Ra8) 44. Rb5 $18 {[%emt 0:00:03]} Rc8 {[%emt 0:00:04]} 45. a6 {[%emt 0:00:03]} Bc4 {[%emt 0:00:03] [#]} 46. Ra5 $1 {[%emt 0:00:01]} f5 {[%emt 0:00:02]} 47. a7 {[%emt 0:00:02]} 1-0

[Event "CCT Final-KO 2024"]
[Site "Oslo"]
[Date "2024.12.20"]
[Round "1.5"]
[White "Carlsen, Magnus"]
[Black "Vachier-Lagrave, Maxime"]
[Result "1-0"]
[ECO "B22"]
[WhiteElo "2838"]
[BlackElo "2763"]
[Annotator "TA"]
[PlyCount "115"]
[EventDate "2024.12.11"]
[EventType "k.o."]
[EventCountry "NOR"]
[SourceTitle "playchess.com"]
[Source "ChessBase"]
[SourceQuality "1"]
[TimeControl "600+2"]

{[%evp 21,115,38,29,18,9,18,27,6,20,26,18,23,25,25,37,34,39,33,23,36,55,51,66,63,50,42,56,52,44,45,37,27,31,25,1620,124,88,68,68,48,57,47,62,71,66,64,67,52,61,47,47,43,47,43,141,88,130,139,136,136,154,162,158,146,177,206,221,203,173,181,363,342,343,299,302,303,274,305,336,183,351,343,422,440,452,302,319,313,356,337,512,523,560,548,688,678]} 1. e4 {[%emt 0:00:03]} c5 {[%emt 0:00:01]} 2. c3 {[%emt 0:00:01]} d5 {[%emt 0:00:03]} 3. exd5 {[%emt 0:00:02]} Qxd5 {[%emt 0:00:02]} 4. d4 {[%emt 0:00:01]} Nf6 {[%emt 0:00:15]} 5. Nf3 {[%emt 0:00:02]} Nc6 {[%emt 0:00:04]} 6. Be2 {[%emt 0:00:17]} e6 {[%emt 0:00:24]} 7. O-O {[%emt 0:00:02]} Be7 {[%emt 0:00:05][%cal Bf8e7,Be7c5,Bc5a7][%mdl 32]} 8. c4 {[%emt 0:00:05]} Qd8 {[%emt 0:00:22]} 9. dxc5 {[%emt 0:00:01]} O-O {[%emt 0:00:02]} 10. Nc3 {[%emt 0:00:07]} Bxc5 {[%emt 0:00:05]} 11. a3 {[%emt 0:00:00]} a5 {[%emt 0:00:37]} 12. Na4 {[%emt 0:00:33]} Ba7 {[%emt 0:00:26]} 13. Bf4 {[%emt 0:00:37]} Bd7 {[%emt 0:00:16]} 14. Nc3 {[%emt 0:01:33]} Bb8 {[%emt 0:00:22]} 15. Qc1 {[%emt 0:00:25]} Bxf4 {[%emt 0:01:07]} 16. Qxf4 {[%emt 0:00:01]} Qb8 {[%emt 0:00:04]} 17. Qe3 {[%emt 0:01:39]} a4 {[%emt 0:00:08]} 18. Rad1 {[%emt 0:00:05]} Ne7 {[%emt 0:00:13]} 19. Bd3 {[%emt 0:00:40]} Bc6 {[%emt 0:00:39]} 20. Ne5 {[%emt 0:00:03] Repels Ng4} Ra5 {[%emt 0:00:01]} 21. Rfe1 {[%emt 0:00:27]} h6 {[%emt 0:00:34]} 22. Bc2 {[%emt 0:00:04]} Nf5 {[%emt 0:00:28]} 23. Qe2 {[%emt 0:00:31]} Qa7 {[%emt 0:00:28]} 24. Bxf5 {[%emt 0:00:17]} (24. Qd2 Ra8 25. Bxf5 exf5 26. Qd6) 24... exf5 {[%emt 0:00:02]} 25. Nxc6 {[%emt 0:00:04]} bxc6 {[%emt 0:00:01]} 26. h3 {[%emt 0:00:02]} (26. Qd2 Ra8 27. Qd4 Qxd4 28. Rxd4 Rb8 29. Re2) 26... Qc5 {[%emt 0:00:19]} 27. Qe7 {[%emt 0:00:07]} (27. Qd3 {simplifies} Rfa8 28. Qd4 Nh7 29. Qxc5 Rxc5 30. Nxa4 Rxa4 31. Re8+) 27... Qxc4 $2 {[%emt 0:01:42][%mdl 8192]} (27... Re8 $11 28. Qxc5 Rxe1+ 29. Rxe1 Rxc5) 28. Rd8 $2 {[%emt 0:00:11]} (28. Qxf8+ $1 $18 {is the precise move to win.} Kh7 29. Re7) 28... Nh7 $16 {[%emt 0:00:01]} 29. Red1 {[%emt 0:01:01] and Rxf8+ would now be decisive White has more active pieces. The black rooks are passive.} Qe6 {[%emt 0:00:23]} 30. Qxe6 {[%emt 0:00:25]} (30. Qb4 {is more complex.} Re5 31. Nxa4 Re2 32. R8d6) 30... fxe6 {[%emt 0:00:01]} 31. R8d6 {[%emt 0:00:02][%csl LRc6,LRe6][%cal Bd8d6,Bd6c6,Bc6c4,Bc4b4][%mdl 32]} Rb8 {[%emt 0:00:41]} 32. R1d2 {[%emt 0:00:10]} (32. Rxe6 Rxb2 33. Rxc6 Nf6 $15) 32... e5 {[%emt 0:00:05]} 33. Rxc6 {[%emt 0:00:01]} Nf6 {[%emt 0:00:01]} 34. Rc4 {[%emt 0:00:05]} Rba8 {[%emt 0:00:01]} 35. f3 {[%emt 0:00:01]} R8a7 {[%emt 0:00:17]} 36. Kf2 $36 {[%emt 0:00:02][%mdl 2048] White is more active.} Kh7 {[%emt 0:00:05]} 37. Rd6 {[%emt 0:00:15]} e4 {[%emt 0:00:13]} 38. fxe4 {[%emt 0:00:06]} (38. Rdd4 $142 $1) 38... Rb7 {[%emt 0:00:03]} 39. Rb4 $1 {[%emt 0:00:04]} (39. Nxa4 $2 Nxe4+ (39... fxe4 40. Ke1 $16) 40. Rxe4 fxe4 $19) 39... Re7 {[%emt 0:00:14][%cal Rf6e4]} 40. Rdd4 {[%emt 0:00:01]} (40. Nxa4 $2 {perishes.} Nxe4+ 41. Rxe4 Rxe4 $19) 40... fxe4 {[%emt 0:00:01][%cal Bf5e4,Be4e3][%mdl 32]} 41. Rxa4 {[%emt 0:00:06]} e3+ {[%emt 0:00:03]} 42. Ke2 {[%emt 0:00:02]} Rae5 {[%emt 0:00:15] [#]} 43. g4 $1 {[%emt 0:00:03] Wards off Nh5} h5 {[%emt 0:00:01] [#]} 44. Rac4 $1 {[%emt 0:00:10]} Kg6 {[%emt 0:00:06]} 45. b4 {[%emt 0:00:07]} Kg5 $2 {[%emt 0:00:00]} (45... hxg4 46. hxg4 Re8) 46. a4 $18 {[%emt 0:00:08][%cal Ba3a4,Ba4a5][%mdl 32]} Kh4 {[%emt 0:00:05]} 47. g5+ {[%emt 0:00:03]} Kxg5 {[%emt 0:00:02]} 48. a5 {[%emt 0:00:04]} Rf5 {[%emt 0:00:01]} 49. Ne4+ {[%emt 0:00:02]} Kg6 {[%emt 0:00:07]} 50. Kxe3 {[%emt 0:00:04]} (50. a6 $142) 50... Rf1 $2 {[%emt 0:00:01]} (50... Nd5+ {was worth a try.} 51. Kd3 Nxb4+ 52. Rxb4 Rxa5 53. Rd6+ Kh7) 51. Kd2 {[%emt 0:00:07]} Rh1 {[%emt 0:00:02]} 52. Nxf6 {[%emt 0:00:05]} gxf6 {[%emt 0:00:01][%mdl 4096] Endgame KRR-KRR. White is a pawn up.} 53. Rd3 {[%emt 0:00:01]} Ra1 {[%emt 0:00:01]} 54. Kc2 {[%emt 0:00:14]} Re2+ {[%emt 0:00:01]} 55. Kb3 {[%emt 0:00:01]} Raa2 {[%emt 0:00:04]} (55... Rf2 $142 56. Rg3+ Kf7) 56. Rf4 {[%emt 0:00:10]} (56. Rg3+ Kf5 57. Rf3+ Kg5 58. Rc5+ Kh4 $18) 56... Reb2+ {[%emt 0:00:01]} 57. Kc4 {[%emt 0:00:04]} Kg5 {[%emt 0:00:03]} 58. Rdf3 {[%emt 0:00:01]} 1-0